Cogmind - Beta 16.1 @@@ ROGUE MODE // 2026.02.11 @ 15:01:55 Player: Megaknight51 Result: Destroyed by FQ-23E(R) with Subdweller Machine Gun Performance ------------- Evolutions (0) 0 Regions Visited (2) 400 Robots Destroyed (22) 110 Value Destroyed (526) 526 Prototype IDs (0) 0 Alien Tech Used (0) 0 Bonus (0) 0 TOTAL SCORE: 1036 Bonus ------- None Cogmind --------- Core Integrity 0/250 Matter 46/300 Energy 100/100 System Corruption 0% Temperature Cool (0) Movement Core (350) Ox6 Location -10/Subcaves Parts ------- > --- POWER (1) -------- Subdweller Power Source > --- PROPULSION (2) --- (None) > --- UTILITY (2) ------ Small Storage Unit Makeshift Light Armor Plating > --- WEAPON (2) ------- Autogun Maul > --- INVENTORY (8) ---- Improved Ion Engine Subdweller Power Source Light Nuclear Core High-capacity Matter Pod (0) Medium Armor Plating Subdweller Beam Cannon Autogun Subdweller Shrapnel Launcher Peak State ------------ > --- POWER ------------ Subdweller Power Source > --- PROPULSION ------- Subdweller Monowheel Subdweller Monowheel > --- UTILITY ---------- Small Storage Unit Makeshift Light Armor Plating > --- WEAPON ----------- Autogun Maul > --- INVENTORY -------- Improved Ion Engine Subdweller Power Source Light Nuclear Core High-capacity Matter Pod Medium Armor Plating Subdweller Beam Cannon Autogun Subdweller Shrapnel Launcher [Rating: 16] Favorites ----------- Power Ion Engine Engine Ion Engine Propulsion Light Treads Treads Light Treads Wheel Subdweller Monowheel Utility Small Storage Unit Device Seismic Detector Storage Small Storage Unit Protection Medium Armor Plating Weapon Autogun Energy Gun Medium Laser Ballistic Gun Autogun Ballistic Cannon Light Cannon Impact Weapon Maul Build | -11 -10 -10 ------- Run | Yrd Mat Sub Slots Evolved . | . . . Power . | . . . Propulsion . | . . . Utility . | . . . Weapon . | . . . Parts Attached 29 | 6 6 17 Power 5 | 1 . 4 Engine 5 | 1 . 4 Core . | . . . Reactor . | . . . Propulsion 6 | 2 . 4 Treads 4 | 2 . 2 Leg . | . . . Wheel 2 | . . 2 Hover . | . . . Flight . | . . . Utility 10 | 1 3 6 Device 1 | . . 1 Storage 2 | 1 . 1 Processor . | . . . Hackware . | . . . Protection 7 | . 3 4 Artifact . | . . . Weapon 8 | 2 3 3 Energy Gun 1 | 1 . . Energy Cannon . | . . . Ballistic Gun 5 | 1 2 2 Ballistic Cannon 1 | . 1 . Launcher . | . . . Special Weapon . | . . . Impact Weapon 1 | . . 1 Slashing Weapon . | . . . Piercing Weapon . | . . . Special Melee Weapon . | . . . Unidentified Prototypes . | . . . Parts Lost 8 | . . 8 Power . | . . . Propulsion 2 | . . 2 Utility 4 | . . 4 Weapon 2 | . . 2 Highest Loss Streak 3 | . . 3 To Critical Strikes 1 | . . 1 Average Backups 5 | . 4 6 Power 1 | . 1 1 Propulsion . | . . . Utility 2 | . 1 2 Weapon 2 | . 1 2 Tool/Special . | . . . Unused Backups 7 | . 4 3 Power 3 | . 2 1 Propulsion . | . . . Utility 1 | . 1 . Weapon 3 | . 1 2 Tool/Special . | . . . Average Slot Usage (%) 88 | . 94 86 Engine 14 | . 14 14 Treads 20 | . 28 16 Wheel 2 | . . 4 Device 2 | . . 2 Storage 14 | . 14 14 Protection 6 | . 8 4 Energy Gun 1 | . 5 . Ballistic Gun 18 | . 20 18 Impact Weapon 6 | . . 9 Peak Build Rating 16 | 6 11 16 Average Rating 9 | 4 8 10 On Entrance 5 | . 6 11 Avg Prop Armor Cover (%) 4 | . . 4 Naked Turns . | . . . Heaviest Build 25 | 14 23 25 Greatest Support 40 | 40 40 40 Greatest Overweight (x) 6 | . . 6 Average Overweight (x) . | . . . Largest Inventory Capacity 8 | 8 8 8 Average Capacity 7 | 7 8 8 Most Carried 8 | 1 8 8 Average Carried 5 | . 4 6 Final Capacity 8 | 8 8 8 Final Carried 8 | 1 8 8 Class Distribution -------------------- 100% | Mutant Dominant Class ---------------- Mutant | -10/Materials Mutant | -10/Subcaves Resources | -11 -10 -10 ----------- Run | Yrd Mat Sub Matter Collected 1083 | 244 218 621 Remotely . | . . . Salvage Created 598 | . 310 288 Parts 45 | . 22 23 Haulers Intercepted . | . . . Recyclers Shooed 1 | . 1 . Parts Field Recycled . | . . . Retrieved Matter . | . . . Parts Self-Destructed 12 | . . 12 Prevented . | . . . Parts Restored . | . . . Kills | -11 -10 -10 ------- Run | Yrd Mat Sub Combat Hostiles Destroyed 18 | . 8 10 Guns 16 | . 7 9 Cannons 1 | . 1 . Classes Destroyed 9 | . 6 3 Tunneler 1 | . 1 . Recycler 1 | . 1 . Operator 1 | . 1 . Watcher 1 | . 1 . Swarmer 8 | . 3 5 Grunt 5 | . 5 . Sentry 1 | . . 1 Artisan 1 | . . 1 Subdweller 4 | . . 4 Best Kill Streak 3 | . 3 3 Combat Bots Only 3 | . 3 3 Max Kills in Single Turn 2 | . 2 1 Gunslinging 1 | . 1 . Exploded . | . . . Melee . | . . . Uniques/NPCs Destroyed . | . . . Combat | -11 -10 -10 -------- Run | Yrd Mat Sub Hostile Shots Fired 163 | . 33 130 Missed 47 | . 6 41 Hits 116 | . 27 89 Projectile 116 | . 27 89 Critical Strikes 1 | . . 1 Damage Taken 1813 | . 333 1480 Core 267 | . 27 240 Absorbed by Shields . | . . . Core Remaining (%) 100 | 100 . . Volleys Fired 95 | . 34 61 Largest 2 | . 2 2 Hottest 50 | . 50 46 Shots Fired 189 | . 68 121 Gun 182 | . 61 121 Cannon 7 | . 7 . Launcher . | . . . Special . | . . . Kinetic 189 | . 68 121 Thermal . | . . . Explosive . | . . . Electromagnetic . | . . . Robot Hit Streak 22 | . 22 15 Robot Miss Streak 3 | . 3 3 Penetration Max . | . . . Secondary Targets 2 | . 1 1 Max Gunslinging Chain 1 | . 1 1 Shots Hit Robots 139 | . 46 93 Core Hits 33 | . 17 16 Critical Kills . | . . . Critical Parts Destroyed 1 | . . 1 Critical Strikes 2 | . 1 1 Blast 1 | . 1 . Smash 1 | . . 1 Melee Attacks 44 | . . 44 Impact 44 | . . 44 Slashing . | . . . Piercing . | . . . Sneak Attacks 4 | . . 4 Combat Hostiles . | . . . Follow-up Attacks . | . . . Damage Inflicted 1917 | 3 733 1181 Guns 1500 | . 634 866 Cannons 87 | . 87 . Explosions . | . . . Melee 293 | . . 293 Ramming 37 | 3 12 22 Kinetic 1587 | . 721 866 Thermal . | . . . Explosive . | . . . Electromagnetic . | . . . Impact 293 | . . 293 Slashing . | . . . Piercing . | . . . Highest Corruption . | . . . Average Corruption . | . . . Corruption Purged . | . . . Corruption Blocked . | . . . Overload Shots . | . . . Overflow Damage 201 | . . 201 Projectiles . | . . . Explosions . | . . . Melee 201 | . . 201 Knockbacks 2 | . . 2 Impact 2 | . . 2 Kinetic . | . . . Secondary . | . . . Self-Inflicted Damage . | . . . Shots . | . . . Rammed 11 | 1 2 8 Targets Rammed 12 | 1 3 8 Kicked . | . . . Crushed 1 | . 1 . Highest Temperature 84 | . 84 . Average Temperature 22 | . 22 . Received Heat Transfer 342 | . 162 180 Siege Activations . | . . . Martial Activations . | . . . Shielding Activations . | . . . Robots Disrupted . | . . . Combat Hostiles . | . . . Robots Corrupted 2 | . . 2 Combat Hostiles 1 | . . 1 Parts Fried 1 | . . 1 Impact Corruptions 4 | . . 4 Robots Melted . | . . . Combat Hostiles . | . . . Parts Melted . | . . . Heat Transferred . | . . . Parts Sabotaged . | . . . Parts Stolen . | . . . Parts Stripped . | . . . Power Chain Reactions . | . . . Alert | -11 -10 -10 ------- Run | Yrd Mat Sub Maximum Alert Level . | . . . Low Security (%) 100 | 100 100 . Level 1 . | . . . Level 2 . | . . . Level 3 . | . . . Level 4 . | . . . Level 5 . | . . . High Security . | . . . Max Security . | . . . Peak Influence 127 | . 127 . Initial . | . . . Average 28 | . 31 . Influence Increases 434 | . 244 190 Destroy 0b10 Robot/C 280 | . 160 120 Destroy 0b10 Robot/NC 20 | . 20 . Destroy Leader 52 | . 42 10 Successful Hack 6 | . 6 . Destroy Structure 1 | . 1 . Lose Combat Pursuer 75 | . 15 60 Influence Decreases 434 | . 152 282 Entered New Map 45 | . . 45 Time Decay 349 | . 152 197 Lost Part 40 | . . 40 Squads Dispatched 1 | . 1 . Investigation 1 | . 1 . Extermination . | . . . Reinforcement . | . . . Assault . | . . . Garrison . | . . . Intercept . | . . . Searches Triggered . | . . . Construction Impeded . | . . . Haulers Reinforced . | . . . Active Scanning Responses . | . . . Cargo Convoy Interrupts . | . . . Stealth | -11 -10 -10 --------- Run | Yrd Mat Sub Distress Signals 1 | . 1 . Communications Jammed . | . . . Distress Signals . | . . . Times Spotted 25 | . 11 14 Peak Tracking Total 4 | . 4 3 Tactical Retreats 4 | . 1 3 Traps | -11 -10 -10 ------- Run | Yrd Mat Sub Traps Triggered . | . . . Indirectly . | . . . Trap Hack Attempts . | . . . Triggered . | . . . Disarmed . | . . . Reprogrammed . | . . . Reused . | . . . Traps Extracted . | . . . Installed . | . . . Triggered . | . . . Machines | -11 -10 -10 ---------- Run | Yrd Mat Sub Machines Disabled 1 | . . 1 Max in Single Turn 1 | . . 1 Machines Repaired . | . . . Machines Dismantled . | . . . Machines Sabotaged . | . . . Overloaded Fab Kills . | . . . Hacking | -11 -10 -10 --------- Run | Yrd Mat Sub Machines Accessed 5 | . 2 3 Terminals 2 | . 2 . Fabricators . | . . . Repair Stations . | . . . Recycling Units . | . . . Scanalyzers . | . . . Garrison Access . | . . . Total Hacks 12 | . 6 6 Successful 8 | . 2 6 Failed 4 | . 4 . Catastrophic . | . . . Database Lockouts . | . . . Manual 6 | . 6 . Terminals 6 | . 6 . Fabricators . | . . . Repair Stations . | . . . Recycling Units . | . . . Scanalyzers . | . . . Garrison Access . | . . . Terminal Hacks 8 | . 2 6 Record 5 | . . 5 Robot Analysis 2 | . 2 . Open Door 1 | . . 1 Fabricator Hacks . | . . . Repair Station Hacks . | . . . Recycling Unit Hacks . | . . . Scanalyzer . | . . . Garrison Access Hacks . | . . . Unauthorized Hacks . | . . . Terminals . | . . . Fabricators . | . . . Repair Stations . | . . . Recycling Units . | . . . Scanalyzers . | . . . Garrison Access . | . . . Data Cores Recovered . | . . . Used . | . . . Hacking Detections 2 | . 2 . Full Trace Events 1 | . 1 . Feedback Events . | . . . Feedback Blocked . | . . . Robot Schematics Acquired . | . . . Robots Built . | . . . Authchips . | . . . Time . | . . . Total Robot Build Rating . | . . . Part Schematics Acquired . | . . . Parts Built . | . . . Authchips . | . . . Time . | . . . Total Part Build Rating . | . . . Part Studies Acquired . | . . . Parts Repaired . | . . . Time . | . . . Parts Recycled . | . . . Recycled Matter . | . . . Retrieved Matter . | . . . Retrieved Components . | . . . Parts Scanalyzed . | . . . Part Schematics Acquired . | . . . Parts Damaged . | . . . Bothacking | -11 -10 -10 ------------ Run | Yrd Mat Sub Used RIF Installer . | . . . Robots Hacked . | . . . Non-combat . | . . . Combat . | . . . Robot Hacks Applied . | . . . Relay Couplers Released . | . . . Fabnet Peak Effective % . | . . . Robots Rewired . | . . . Allies Hacked . | . . . Hacks Repelled . | . . . Allies | -11 -10 -10 -------- Run | Yrd Mat Sub Total Allies . | . . . Largest Group . | . . . Highest-Rated Group . | . . . Highest-Rated Ally . | . . . Total Orders . | . . . Ally Attacks . | . . . Total Damage . | . . . Kills . | . . . Allies Corrupted . | . . . Allies Melted . | . . . Intel | -11 -10 -10 ------- Run | Yrd Mat Sub Active Infowar (turns) 422 | . . 422 Seismic 422 | . . 422 Robot Analysis Total 2 | . 2 . Derelict Logs Recovered . | . . . Drone Launches . | . . . Drone Recoveries . | . . . Exploration | -11 -10 -10 ------------- Run | Yrd Mat Sub Turns Passed 3059 | 111 928 2020 Spaces Moved 1377 | 66 286 1025 Core 53 | 5 . 48 Treads 1010 | 61 286 663 Legs . | . . . Wheels 314 | . . 314 Hover . | . . . Flight . | . . . Fastest Speed 50 | 50 160 110 Average Speed 154 | 151 160 153 Slowest Speed 350 | 160 160 350 Overloaded Moves . | . . . Propulsion Burnouts . | . . . Robots Hopped . | . . . Potential Cave-ins . | . . . Cave-ins Triggered . | . . . Exploration Rate (%) 29 | 4 41 44 Regions Visited 2 Branch Regions 1 Pre-discovered Areas . | . . . Known Exits Taken . | . . . Unknown Exits Taken 2 | 1 1 . Scrap Searched . | . . . Spaces Dug 4 | . . 4 Terrain Destroyed 4 | . . 4 Melee 4 | . . 4 Projectile . | . . . AOE . | . . . Terrain Rammed . | . . . Walls Destroyed . | . . . Machines Disabled . | . . . Actions | -11 -10 -10 --------- Run | Yrd Mat Sub Total 2045 | 73 699 1273 Wait 441 | . 351 90 Move 1376 | 66 285 1025 Hop . | . . . Pick Up 16 | 1 13 2 Fast Attach 10 | 6 1 3 Attach 5 | . . 5 Detach . | . . . Swap 32 | . 5 27 Drop 14 | . 7 7 Fire 95 | . 34 61 Melee 44 | . . 44 Ram . | . . . Kick . | . . . Crush 11 | . 3 8 Escape Stasis . | . . . Rewire 1 | . . 1 Trap . | . . . Miscellaneous . | . . . Route ------- -11/Scrapyard -10/Materials (discovered 3 exits: [*Min x2] / *Sub) -10/Subcaves History --------- Turn | Location | Event 23 | -11/Scrapyard | Discovered new exit (range 16) 112 | -11/Scrapyard | Entered Materials 303 | -10/Materials | Build established: Mutant 590 | -10/Materials | Discovered new exit (range 9) 781 | -10/Materials | Discovered new exit (range 12) 962 | -10/Materials | Discovered new exit (range 4) 1040 | -10/Materials | Entered Subcaves 1041 | -10/Subcaves | Approached by a straggling Scientist 1043 | -10/Subcaves | A swath of the cavern ceiling suddenly collapsed 1593 | -10/Subcaves | Shifting Twisted Machinery released Spk. Treads 1627 | -10/Subcaves | Shifting Twisted Machinery released Sub. Laser 1898 | -10/Subcaves | Core integrity fell below 50% 2030 | -10/Subcaves | Lost 3 parts (1n1u1w) 2130 | -10/Subcaves | Ambushed by angry Subdweller bent on revenge 2340 | -10/Subcaves | Visited Clippyterm 2345 | -10/Subcaves | Learned Factory emergency access door positions 2494 | -10/Subcaves | Core integrity fell below 20% 2847 | -10/Subcaves | Shifting Twisted Machinery released Mak. Sword 2855 | -10/Subcaves | Shifting Twisted Machinery released Mak. Light Armor Plating 2910 | -10/Subcaves | A swath of the cavern ceiling suddenly collapsed 3044 | -10/Subcaves | A Subdweller sparked back to life 3044 | -10/Subcaves | A Subdweller sparked back to life 3044 | -10/Subcaves | A Subdweller sparked back to life 3060 | -10/Subcaves | Destroyed by FQ-23E(R) with Subdweller Machine Gun Last Messages --------------- Take all precautions to prevent this from happening. 02806_ Sub. Monowheel shoots sparks and powers down. 02830_ Acquired Med. Armor Plating. Mak. Sword falls loose from the Twisted Machinery. Mak. Light Armor Plating falls loose from the Twisted Machinery. 02889_ Sub. Monowheel shoots sparks and powers down. 02890_ Dropped Broken Sub. Monowheel. A swath of the cavern ceiling suddenly collapses. 02917_ Sub. Power Source shoots sparks and powers down. 03043_ Attempting to rewire Y0-TLE(R). 03043_ Y0-TLE(R) is broken beyond repair. 03044_ Sneak attack on Y0-TLE(R). 03044_ Y0-TLE(R) suffers critical hit (Smash). 03044_ Destroyed Sub. Machine Gun. 03044_ Y0-TLE(R) system corrupted by crushing effect. 03044_ Y0-TLE(R) creaks and sparks as it begins to move. 03044_ FQ-23E(R) creaks and sparks as it begins to move. 03044_ MN-K0D(R) creaks and sparks as it begins to move. 03045_ Y0-TLE(R) system terminally corrupted. 03045_ Sub. Monowheel fried. Map ----- +----------------------------------------------------+ | ?????????????????????????????????????????????????? | | ?????????????????????????????????????????????????? | | ?????????????????????????????????????????????????? | | ?????????????????????????????????????????????????? | | ?????????????????????????????????????????????????? | | ?????????????????????????????????????????????????? | | ?????????????????????????????????????????????????? | | ?????????????????????????????????????????????????? | | ?????????????????????????????????????????????????? | | ?????????????????????????????????????????????????? | | ?????????????????????????????????????????????????? | | ?????????????????????????????????????????????????? | | ?????????????????????????????????????????????????? | | ?????????????????????????????????????????????????? | | ?????????????????????????????????????????????????? | | ?????????????????????????????????????????????????? | | ?????????????????????????????????????????????????? | | ???????????????????#?????###?????????????????????? | | ??????????????????## ???? #?????????????????????? | | ?????????????????## ??? ##????????????????????? | | ????????????????## ### #????????????????????? | | ???????????????## < <# #????????????????????? | | ???????????????# #????????????????????? | | ???????????????# R& #????????????????????? | | ????????????????# & R <#?????????????????????? | | ????????????????????# @ #?????????????????????? | | ??????????????? #???####%&;##????????????????????? | | ??????????????? #?????#&##;#????????????????????? | | ??????????????? "###??##"#;##???????????????????? | | ???????????????#"" ##???#"";#???????????????????? | | ??????????????## ""#???##"##?####??????????????? | | ##???????????## """"##???# #### ######??????????? | | # ????????## """" #???#""##"#""##"#??????????? | | ???????#"""" #???#"##"""###"##??????????? | | ???????#" #???##"""""""#"#??????????? | | ? ???????# #?????###"####"###?????????#" | | ??? # "??????# #???????## ##### #?????????#" | | ????# "???#### " ###??#####""## #?????????#" | | ?????# "##?# "" #### "# "### #?????????#" | | ?????# ##" ""### ##?# #####?????## | | ????## ""###?## == ####?? ## #??????? | | ????# """#?######### #????# #??????? | | ???## """## #????## ####?## #??###??? | | ???# "" ## #???## #?# ### ##?? | | ???# /" ### #??## # #?# #?? | | ???####### # #### #??# ##?? | | ?????????# #### ### #? | | ?????????# ### #?# #? | | ?????????# ##### ###### ## #?? ## | | ?????????# #??## ### ### ##?? # | +----------------------------------------------------+ Best States ------------- Heat Dissipation 25 Energy Generation 15 Energy Capacity 265 Matter Stores 300 Matter Capacity 300 Sight Range 16 Terrain Scan Density 10 Armor Coverage 225 Utility Shielding 33 Weapon Shielding 33 Evasion (%) 40 Recoil Reduction 2 Item Schematics ----------------- None Robot Schematics ------------------ None Fabricated ------------ Nothing Repaired ---------- Nothing Studied --------- None Alien Tech Used ----------------- None Achievements -------------- None Challenges ------------ None Game ------ Seed ClaymoresBlastShield Manual? 0 Play Time 00:14:57 Cumulative 60.9 hours Start 2026.02.11 @ 14:46:55 End 2026.02.11 @ 15:01:55 Sessions 1 Manual Loads 0 Difficulty Rogue Special Mode None Game No. 129 Rogue 129 Adventurer 0 Explorer 0 Win Type - Total 0 Types 0/0/0/0/0/0/0/0/0/0 Lore% 36 Gallery% 31 Achievement% 29 Wizard Run 0 Options --------- Layout 0 ASCII 0 Keyboard 1 Movement Arrows Keybinds 0 Fullscreen 1 Font 18/Smallcaps Map View 38x25 Zoom Use 76% Tactical HUD 1 Map Filters NONE Filters NONE Steam 1 RUN: 07b4081d-5e4a-40ec-bc56-57c417939ee2